fUST/lending_fUST_20240817
["ID","MTS","AMOUNT","RATE_DAILY","PERIOD"]
[335155614,1723891650208,-500.0,0.00022465,2]
[335155615,1723891650250,-500.0,0.00022465,2]
[335155616,1723891650294,-500.0,0.00022465,2]
[335155617,1723891650339,-500.0,0.00022465,2]
[335155618,1723891650387,-500.0,0.00022465,2]
[335155619,1723891650432,-500.0,0.00022465,2]
[335155620,1723891650475,-500.0,0.00022465,2]
[335155621,1723891650517,-500.0,0.00022465,2]
[335155622,1723891650559,-500.0,0.00022465,2]
[335155623,1723891650602,-784.78,0.00022465,2]
[335155624,1723891650643,-517.50538521,0.00022465,2]
[335155625,1723891650685,-584.85,0.00022465,2]
[335155626,1723891650730,-500.0,0.00022465,2]
[335155627,1723891650771,-500.0,0.00022465,2]
[335155628,1723891650814,-500.0,0.00022465,2]
[335155629,1723891650858,-761.31,0.00022465,2]
[335155630,1723891650905,-500.0,0.00022465,2]
[335155631,1723891650948,-1569.98,0.00022465,2]
[335155632,1723891650990,-749.17,0.00022465,2]
[335155633,1723891651033,-500.0,0.00022465,2]
[335155634,1723891651078,-500.0,0.00022465,2]
[335155635,1723891651121,-642.21899534,0.00022465,2]
[335155636,1723891651168,-500.0,0.00022465,2]
[335155637,1723891651215,-778.0,0.00022465,2]
[335155638,1723891651259,-500.0,0.00022465,2]
[335155639,1723891651302,-785.89,0.00022465,2]
[335155640,1723891651352,-500.0,0.00022465,2]
[335155641,1723891651395,-500.0,0.00022465,2]
[335155642,1723891651439,-725.67,0.00022465,2]
[335155643,1723891651490,-868.08,0.00022465,2]
[335155644,1723891651534,-500.0,0.00022465,2]
[335155645,1723891651576,-500.0,0.00022465,2]
[335155646,1723891651620,-500.0,0.00022465,2]
[335155647,1723891651662,-665.87,0.00022465,2]
[335155648,1723891651715,-572.01262525,0.00022465,2]
[335155649,1723891651760,-1032.75196892,0.00022718,3]
[335155650,1723891651945,-4131.00787568,0.00022719,3]
[335155651,1723891651993,-4131.00787568,0.00022729,3]
[335155652,1723891652041,-500.0,0.00022739,2]
[335155653,1723891652089,-500.0,0.00022739,2]
[335155654,1723891652136,-500.0,0.00022739,2]
[335155655,1723891652185,-500.0,0.00022739,2]
[335155656,1723891652236,-500.0,0.00022739,2]
[335155657,1723891652284,-500.0,0.00022739,2]
[335155658,1723891652330,-500.0,0.00022739,2]
[335155659,1723891652376,-500.0,0.00022739,2]
[335155660,1723891652427,-500.0,0.00022739,2]
[335155661,1723891652472,-500.0,0.00022739,2]
[335155662,1723891652519,-500.0,0.00022739,2]
[335155663,1723891652564,-500.0,0.00022739,2]
[335155664,1723891652610,-500.0,0.00022739,2]
[335155665,1723891652657,-500.0,0.00022739,2]
[335155666,1723891652707,-500.0,0.00022739,2]
[335155667,1723891652755,-500.0,0.00022739,2]
[335155668,1723891652802,-638.63,0.00022739,2]
[335155669,1723891652849,-500.0,0.00022739,2]
[335155670,1723891652892,-500.0,0.00022739,2]
[335155671,1723891652937,-500.0,0.00022739,2]
[335155672,1723891652982,-229.24,0.00022739,2]
[335155673,1723891653028,-500.0,0.00022739,2]
[335155674,1723891653078,-500.0,0.00022739,2]
[335155675,1723891653128,-500.0,0.00022739,2]
[335155676,1723891653178,-576.74,0.00022739,2]
[335155677,1723891653226,-500.0,0.00022739,2]
[335155678,1723891653277,-406.2112436,0.00022739,2]
[335155679,1723891653328,-500.0,0.00022739,2]
[335155680,1723891653380,-500.0,0.00022739,2]
[335155681,1723891653435,-500.0,0.00022739,2]
[335155682,1723891653485,-500.0,0.00022739,2]
[335155683,1723891653537,-500.0,0.00022739,2]
[335155684,1723891653589,-500.0,0.00022739,2]
[335155685,1723891653639,-500.0,0.00022739,2]
[335155686,1723891653686,-500.0,0.00022739,2]
[335155687,1723891653733,-500.0,0.00022739,2]
[335155688,1723891653785,-571.46,0.00022739,2]
[335155689,1723891653832,-500.0,0.00022739,2]
[335155690,1723891653881,-500.0,0.00022739,2]
[335155691,1723891653930,-4039.78,0.00022739,2]
[335155692,1723891653980,-500.0,0.00022739,2]
[335155693,1723891654032,-500.0,0.00022739,2]
[335155694,1723891654081,-500.0,0.00022739,2]
[335155695,1723891654127,-500.0,0.00022739,2]
[335155696,1723891654175,-578.52,0.00022739,2]
[335155697,1723891654221,-669.44,0.00022739,2]
[335155698,1723891654268,-500.0,0.00022739,2]
[335155699,1723891654315,-500.0,0.00022739,2]
[335155700,1723891654362,-500.0,0.00022739,2]
[335155701,1723891654410,-1476.57,0.00022739,2]
[335155702,1723891654463,-500.0,0.00022739,2]
[335155703,1723891654513,-583.41,0.00022739,2]
[335155704,1723891654567,-500.0,0.00022739,2]
[335155705,1723891654615,-578.37,0.00022739,2]
[335155706,1723891654663,-500.0,0.00022739,2]
[335155707,1723891654713,-500.0,0.00022739,2]
[335155708,1723891654764,-500.0,0.00022739,2]
[335155709,1723891654813,-500.0,0.00022739,2]
[335155710,1723891654860,-195.95121431,0.00022739,2]
[335155711,1723891654908,-500.0,0.00022739,2]
[335155712,1723891654954,-500.0,0.00022739,2]
[335155713,1723891655000,-500.0,0.00022739,2]
[335155714,1723891655050,-500.0,0.00022739,2]
[335155715,1723891655099,-500.0,0.00022739,2]
[335155716,1723891655145,-500.0,0.00022739,2]
[335155717,1723891655193,-500.0,0.00022739,2]
[335155718,1723891655246,-500.0,0.00022739,2]
[335155719,1723891655291,-259.20784195,0.00022739,2]
[335155720,1723891655338,-534.58040396,0.00022739,2]
[335155721,1723891655386,-500.0,0.00022739,2]
[335155722,1723891655437,-500.0,0.00022739,2]
[335155723,1723891655486,-707.23,0.00022739,2]
[335155724,1723891655538,-500.0,0.00022739,2]
[335155725,1723891655584,-500.0,0.00022739,2]
[335155726,1723891655630,-1366.18,0.00022739,2]
[335155727,1723891655677,-500.0,0.00022739,2]
[335155728,1723891655723,-500.0,0.00022739,2]
[335155729,1723891655772,-740.75,0.00022739,2]
[335155730,1723891655821,-500.0,0.00022739,2]
[335155731,1723891655868,-500.0,0.00022739,2]
[335155732,1723891655914,-773.58,0.00022739,2]
[335155733,1723891655963,-500.0,0.00022739,2]
[335155734,1723891656009,-500.0,0.00022739,2]
[335155735,1723891656062,-500.0,0.00022739,2]
[335155736,1723891656111,-500.0,0.00022739,2]
[335155737,1723891656159,-984.19,0.00022739,2]
[335155738,1723891656207,-500.0,0.00022739,2]
[335155739,1723891656255,-500.0,0.00022739,2]
[335155740,1723891656306,-500.0,0.00022739,2]
[335155741,1723891656354,-500.0,0.00022739,2]
[335155742,1723891656406,-500.0,0.00022739,2]
[335155743,1723891656455,-500.0,0.00022739,2]
[335155744,1723891656502,-500.0,0.00022739,2]
[335155745,1723891656549,-500.0,0.00022739,2]
[335155746,1723891656598,-219.86826079,0.00022739,2]
[335155747,1723891656646,-784.78,0.00022739,2]
[335155748,1723891656694,-584.85,0.00022739,2]
[335155749,1723891656741,-500.0,0.00022739,2]
[335155750,1723891656793,-500.0,0.00022739,2]
[335155751,1723891656848,-500.0,0.00022739,2]
[335155752,1723891656897,-761.31,0.00022739,2]
[335155753,1723891656941,-500.0,0.00022739,2]
[335155754,1723891656989,-1569.98,0.00022739,2]
[335155755,1723891657033,-749.17,0.00022739,2]
[335155756,1723891657083,-500.0,0.00022739,2]
[335155757,1723891657134,-500.0,0.00022739,2]
[335155758,1723891657180,-500.0,0.00022739,2]
[335155759,1723891657226,-778.0,0.00022739,2]
[335155760,1723891657272,-500.0,0.00022739,2]
[335155761,1723891657319,-785.89,0.00022739,2]
[335155762,1723891657370,-500.0,0.00022739,2]
[335155763,1723891657416,-500.0,0.00022739,2]
[335155764,1723891657467,-725.67,0.00022739,2]
[335155765,1723891657519,-868.08,0.00022739,2]
[335155766,1723891657567,-388.58925413,0.00022739,2]
[335155767,1723891657609,-500.0,0.00022739,2]
[335155768,1723891657654,-500.0,0.00022739,2]
[335155769,1723891657699,-665.87,0.00022739,2]
[335155770,1723891657749,-1000.0,0.00023,2]
[335155771,1723891657793,-1032.75196892,0.00023002,3]
[335155772,1723891657836,-3098.25590676,0.00023003,3]
[335155773,1723891657881,-500.0,0.00023013,2]
[335155774,1723891657924,-500.0,0.00023013,2]
[335155775,1723891657967,-500.0,0.00023013,2]
[335155776,1723891658011,-500.0,0.00023013,2]
[335155777,1723891658057,-500.0,0.00023013,2]
[335155778,1723891658103,-500.0,0.00023013,2]
[335155779,1723891658150,-500.0,0.00023013,2]
[335155780,1723891658197,-500.0,0.00023013,2]
[335155781,1723891658378,-500.0,0.00023013,2]
[335155782,1723891658431,-500.0,0.00023013,2]
[335155783,1723891658480,-500.0,0.00023013,2]
[335155784,1723891658526,-500.0,0.00023013,2]
[335155785,1723891658576,-500.0,0.00023013,2]
[335155786,1723891658624,-500.0,0.00023013,2]
[335155787,1723891658675,-500.0,0.00023013,2]
[335155788,1723891658720,-234.73916606,0.00023013,2]
[335155789,1723891658767,-638.63,0.00023013,2]
[335155790,1723891658811,-567.27975764,0.00023013,2]
[335155791,1723891658862,-562.96,0.00023013,2]
[335155792,1723891658909,-500.0,0.00023013,2]
[335155793,1723891658954,-500.0,0.00023013,2]
[335155794,1723891658999,-500.0,0.00023013,2]
[335155795,1723891659043,-500.0,0.00023013,2]
[335155796,1723891659091,-500.0,0.00023013,2]
[335155797,1723891659139,-500.0,0.00023013,2]
[335155798,1723891659185,-500.0,0.00023013,2]
[335155799,1723891659229,-500.0,0.00023013,2]
[335155800,1723891659274,-500.0,0.00023013,2]
[335155801,1723891659316,-500.0,0.00023013,2]
[335155802,1723891659363,-500.0,0.00023013,2]
[335155803,1723891659408,-500.0,0.00023013,2]
[335155804,1723891659458,-571.46,0.00023013,2]
[335155805,1723891659505,-500.0,0.00023013,2]
[335155806,1723891659553,-500.0,0.00023013,2]
[335155807,1723891659602,-4039.78,0.00023013,2]
[335155808,1723891659648,-500.0,0.00023013,2]
[335155809,1723891659692,-500.0,0.00023013,2]
[335155810,1723891659737,-500.0,0.00023013,2]
[335155811,1723891659784,-500.0,0.00023013,2]
[335155812,1723891659829,-578.52,0.00023013,2]
[335155813,1723891659878,-669.44,0.00023013,2]
[335155814,1723891659925,-500.0,0.00023013,2]
[335155815,1723891659970,-500.0,0.00023013,2]
[335155816,1723891660017,-500.0,0.00023013,2]
[335155817,1723891660067,-1476.57,0.00023013,2]
[335155818,1723891660114,-500.0,0.00023013,2]
[335155819,1723891660161,-583.41,0.00023013,2]
[335155820,1723891660207,-500.0,0.00023013,2]
[335155821,1723891660253,-500.0,0.00023013,2]
[335155822,1723891660300,-500.0,0.00023013,2]
[335155823,1723891660347,-500.0,0.00023013,2]
[335155824,1723891660396,-500.0,0.00023013,2]
[335155825,1723891660440,-500.0,0.00023013,2]
[335155826,1723891660486,-500.0,0.00023013,2]
[335155827,1723891660529,-500.0,0.00023013,2]
[335155828,1723891660571,-500.0,0.00023013,2]
[335155829,1723891660616,-500.0,0.00023013,2]
[335155830,1723891660658,-500.0,0.00023013,2]
[335155831,1723891660702,-500.0,0.00023013,2]
[335155832,1723891660748,-500.0,0.00023013,2]
[335155833,1723891660794,-500.0,0.00023013,2]
[335155834,1723891660836,-707.23,0.00023013,2]
[335155835,1723891660881,-500.0,0.00023013,2]
[335155836,1723891660928,-500.0,0.00023013,2]
[335155837,1723891660977,-1366.18,0.00023013,2]
[335155838,1723891661026,-500.0,0.00023013,2]
[335155839,1723891661076,-500.0,0.00023013,2]
[335155840,1723891661123,-740.75,0.00023013,2]
[335155841,1723891661168,-500.0,0.00023013,2]
[335155842,1723891661214,-500.0,0.00023013,2]
[335155843,1723891661259,-773.58,0.00023013,2]
[335155844,1723891661305,-584.43723402,0.00023013,2]
[335155845,1723891661348,-500.0,0.00023013,2]
[335155846,1723891661396,-500.0,0.00023013,2]
[335155847,1723891661441,-500.0,0.00023013,2]
[335155848,1723891661485,-984.19,0.00023013,2]
[335155849,1723891661532,-500.0,0.00023013,2]
[335155850,1723891661575,-500.0,0.00023013,2]
[335155851,1723891661619,-500.0,0.00023013,2]
[335155852,1723891661662,-500.0,0.00023013,2]
[335155853,1723891661705,-784.78,0.00023013,2]
[335155854,1723891661749,-584.85,0.00023013,2]
[335155855,1723891661794,-500.0,0.00023013,2]
[335155856,1723891661842,-500.0,0.00023013,2]
[335155857,1723891661885,-500.0,0.00023013,2]
[335155858,1723891661929,-761.31,0.00023013,2]
[335155859,1723891661973,-1569.98,0.00023013,2]
[335155860,1723891662021,-749.17,0.00023013,2]
[335155861,1723891662070,-253.71098309,0.00023013,2]
[335155862,1723891662118,-500.0,0.00023013,2]
[335155863,1723891662163,-500.0,0.00023013,2]
[335155864,1723891662212,-778.0,0.00023013,2]
[335155865,1723891662261,-500.0,0.00023013,2]
[335155866,1723891662308,-785.89,0.00023013,2]
[335155867,1723891662356,-500.0,0.00023013,2]
[335155868,1723891662404,-725.67,0.00023013,2]
[335155869,1723891662449,-868.08,0.00023013,2]
[335155870,1723891662496,-500.0,0.00023013,2]
[335155871,1723891662540,-270.42689422,0.00023013,2]
[335155872,1723891662584,-665.87,0.00023013,2]
[335155873,1723891662627,-200.0,0.00023053,2]
[335155874,1723891662672,-200.0,0.00023053,2]
[335155875,1723891662734,-200.82159658,0.00023053,2]
[335155876,1723891662784,-1032.75196892,0.00023267,3]
[335155877,1723891662829,-3098.25590676,0.00023277,3]
[335155878,1723891662875,-500.0,0.00023287,2]
[335155879,1723891662921,-500.0,0.00023287,2]
[335155880,1723891662967,-500.0,0.00023287,2]
[335155881,1723891663012,-500.0,0.00023287,2]
[335155882,1723891664225,-500.0,0.00023287,2]
[335155883,1723891664275,-500.0,0.00023287,2]
[335155884,1723891664325,-500.0,0.00023287,2]
[335155885,1723891664371,-162.28070211,0.00023287,2]
[335155886,1723891664421,-618.60867441,0.00023287,2]
[335155887,1723891664472,-500.0,0.00023287,2]
[335155888,1723891664519,-500.0,0.00023287,2]
[335155889,1723891664570,-500.0,0.00023287,2]
[335155890,1723891664617,-500.0,0.00023287,2]
[335155891,1723891664667,-500.0,0.00023287,2]
[335155892,1723891664714,-500.0,0.00023287,2]
[335155893,1723891664764,-638.63,0.00023287,2]
[335155894,1723891664813,-500.0,0.00023287,2]
[335155895,1723891664860,-500.0,0.00023287,2]
[335155896,1723891664907,-301.98,0.00023287,2]
[335155897,1723891664957,-500.0,0.00023287,2]
[335155898,1723891665006,-500.0,0.00023287,2]
[335155899,1723891665054,-500.0,0.00023287,2]
[335155900,1723891665102,-500.0,0.00023287,2]
[335155901,1723891665149,-500.0,0.00023287,2]
[335155902,1723891665195,-500.0,0.00023287,2]
[335155903,1723891665244,-548.36490917,0.00023287,2]
[335155904,1723891665289,-500.0,0.00023287,2]
[335155905,1723891665339,-500.0,0.00023287,2]
[335155906,1723891665388,-571.46,0.00023287,2]
[335155907,1723891665441,-500.0,0.00023287,2]
[335155908,1723891665486,-500.0,0.00023287,2]
[335155909,1723891665530,-4039.78,0.00023287,2]
[335155910,1723891665577,-500.0,0.00023287,2]
[335155911,1723891665847,-500.0,0.00023287,2]
[335155912,1723891665898,-500.0,0.00023287,2]
[335155913,1723891665944,-500.0,0.00023287,2]
[335155914,1723891665992,-578.52,0.00023287,2]
[335155915,1723891666040,-669.44,0.00023287,2]
[335155916,1723891666089,-500.0,0.00023287,2]
[335155917,1723891666138,-500.0,0.00023287,2]
[335155918,1723891666184,-500.0,0.00023287,2]
[335155919,1723891666231,-1476.57,0.00023287,2]
[335155920,1723891666281,-572.70284721,0.00023287,2]
[335155921,1723891666329,-583.41,0.00023287,2]
[335155922,1723891666374,-500.0,0.00023287,2]
[335155923,1723891666423,-500.0,0.00023287,2]
[335155924,1723891666471,-500.0,0.00023287,2]
[335155925,1723891666518,-500.0,0.00023287,2]
[335155926,1723891666564,-500.0,0.00023287,2]
[335155927,1723891666609,-500.0,0.00023287,2]
[335155928,1723891666658,-500.0,0.00023287,2]
[335155929,1723891666701,-500.0,0.00023287,2]
[335155930,1723891666748,-305.18113562,0.00023287,2]
[335155931,1723891666797,-500.0,0.00023287,2]
[335155932,1723891666848,-500.0,0.00023287,2]
[335155933,1723891666894,-500.0,0.00023287,2]
[335155934,1723891666940,-500.0,0.00023287,2]
[335155935,1723891666985,-500.0,0.00023287,2]
[335155936,1723891667044,-707.23,0.00023287,2]
[335155937,1723891667089,-500.0,0.00023287,2]
[335155938,1723891667137,-226.83974697,0.00023287,2]
[335155939,1723891667184,-1366.18,0.00023287,2]
[335155940,1723891667228,-500.0,0.00023287,2]
[335155941,1723891667273,-500.0,0.00023287,2]
[335155942,1723891667318,-740.75,0.00023287,2]
[335155943,1723891667363,-500.0,0.00023287,2]
[335155944,1723891667406,-500.0,0.00023287,2]
[335155945,1723891667453,-773.58,0.00023287,2]
[335155946,1723891667497,-500.0,0.00023287,2]
[335155947,1723891667543,-500.0,0.00023287,2]
[335155948,1723891667585,-500.0,0.00023287,2]
[335155949,1723891667628,-984.19,0.00023287,2]
[335155950,1723891667671,-500.0,0.00023287,2]
[335155951,1723891667716,-500.0,0.00023287,2]
[335155952,1723891667758,-500.0,0.00023287,2]
[335155953,1723891667800,-500.0,0.00023287,2]
[335155954,1723891667843,-784.78,0.00023287,2]
[335155955,1723891667887,-584.85,0.00023287,2]
[335155956,1723891667930,-500.0,0.00023287,2]
[335155957,1723891667973,-632.67549026,0.00023287,2]
[335155958,1723891668017,-500.0,0.00023287,2]
[335155959,1723891668061,-761.31,0.00023287,2]
[335155960,1723891668105,-1569.98,0.00023287,2]
[335155961,1723891668152,-749.17,0.00023287,2]
[335155962,1723891668201,-500.0,0.00023287,2]
[335155963,1723891668247,-500.0,0.00023287,2]
[335155964,1723891668294,-778.0,0.00023287,2]
[335155965,1723891668340,-500.0,0.00023287,2]
[335155966,1723891668389,-785.89,0.00023287,2]
[335155967,1723891668437,-500.0,0.00023287,2]
[335155968,1723891668480,-725.67,0.00023287,2]
[335155969,1723891668527,-868.08,0.00023287,2]
[335155970,1723891668572,-500.0,0.00023287,2]
[335155971,1723891668618,-665.87,0.00023287,2]
[335155972,1723891668665,-3098.25590676,0.00023551,3]
[335155973,1723891668711,-500.0,0.00023561,2]
[335155974,1723891668758,-500.0,0.00023561,2]
[335155975,1723891668805,-500.0,0.00023561,2]
[335155976,1723891668849,-500.0,0.00023561,2]
[335155977,1723891668895,-500.0,0.00023561,2]
[335155978,1723891668938,-500.0,0.00023561,2]
[335155979,1723891668983,-500.0,0.00023561,2]
[335155980,1723891669027,-500.0,0.00023561,2]
[335155981,1723891669072,-500.0,0.00023561,2]
[335155982,1723891669119,-500.0,0.00023561,2]
[335155983,1723891669167,-500.0,0.00023561,2]
[335155984,1723891669214,-500.0,0.00023561,2]
[335155985,1723891669260,-500.0,0.00023561,2]
[335155986,1723891669306,-638.63,0.00023561,2]
[335155987,1723891669351,-500.0,0.00023561,2]
[335155988,1723891669397,-500.0,0.00023561,2]
[335155989,1723891669443,-204.29628964,0.00023561,2]
[335155990,1723891669489,-500.0,0.00023561,2]
[335155991,1723891669538,-500.0,0.00023561,2]
[335155992,1723891669584,-500.0,0.00023561,2]
[335155993,1723891669631,-500.0,0.00023561,2]
[335155994,1723891669677,-500.0,0.00023561,2]
[335155995,1723891669725,-500.0,0.00023561,2]
[335155996,1723891669772,-500.0,0.00023561,2]
[335155997,1723891669821,-571.46,0.00023561,2]
[335155998,1723891669867,-337.10960528,0.00023561,2]
[335155999,1723891669912,-500.0,0.00023561,2]
[335156000,1723891669960,-4039.78,0.00023561,2]
[335156001,1723891670007,-293.77393851,0.00023561,2]
[335156002,1723891670050,-500.0,0.00023561,2]
[335156003,1723891670096,-500.0,0.00023561,2]
[335156004,1723891670140,-500.0,0.00023561,2]
[335156005,1723891670188,-578.52,0.00023561,2]
[335156006,1723891670233,-669.44,0.00023561,2]
[335156007,1723891670277,-500.0,0.00023561,2]
[335156008,1723891670324,-500.0,0.00023561,2]
[335156009,1723891670370,-500.0,0.00023561,2]
[335156010,1723891670415,-1476.57,0.00023561,2]
[335156011,1723891670467,-583.41,0.00023561,2]
[335156012,1723891670514,-500.0,0.00023561,2]
[335156013,1723891670561,-500.0,0.00023561,2]
[335156014,1723891670605,-500.0,0.00023561,2]
[335156015,1723891670650,-500.0,0.00023561,2]
[335156016,1723891670697,-500.0,0.00023561,2]
[335156017,1723891670743,-500.0,0.00023561,2]
[335156018,1723891670791,-500.0,0.00023561,2]
[335156019,1723891670838,-500.0,0.00023561,2]
[335156020,1723891670884,-640.48957771,0.00023561,2]
[335156021,1723891670930,-500.0,0.00023561,2]
[335156022,1723891670979,-500.0,0.00023561,2]
[335156023,1723891671028,-500.0,0.00023561,2]
[335156024,1723891671075,-500.0,0.00023561,2]
[335156025,1723891671121,-707.23,0.00023561,2]
[335156026,1723891671165,-500.0,0.00023561,2]
[335156027,1723891671212,-1366.18,0.00023561,2]
[335156028,1723891671256,-500.0,0.00023561,2]
[335156029,1723891671300,-500.0,0.00023561,2]
[335156030,1723891671345,-740.75,0.00023561,2]
[335156031,1723891671398,-500.0,0.00023561,2]
[335156032,1723891671443,-500.0,0.00023561,2]
[335156033,1723891671489,-773.58,0.00023561,2]
[335156034,1723891671533,-500.0,0.00023561,2]
[335156035,1723891671581,-500.0,0.00023561,2]
[335156036,1723891671626,-500.0,0.00023561,2]
[335156037,1723891671672,-984.19,0.00023561,2]
[335156038,1723891671723,-500.0,0.00023561,2]
[335156039,1723891671775,-500.0,0.00023561,2]
[335156040,1723891671824,-500.0,0.00023561,2]
[335156041,1723891671878,-500.0,0.00023561,2]
[335156042,1723891672054,-784.78,0.00023561,2]
[335156043,1723891672103,-584.85,0.00023561,2]
[335156044,1723891672153,-500.0,0.00023561,2]
[335156045,1723891672201,-500.0,0.00023561,2]
[335156046,1723891672248,-761.31,0.00023561,2]
[335156047,1723891672295,-1569.98,0.00023561,2]
[335156048,1723891672343,-749.17,0.00023561,2]
[335156049,1723891672390,-500.0,0.00023561,2]
[335156050,1723891672439,-500.0,0.00023561,2]
[335156051,1723891672486,-778.0,0.00023561,2]
[335156052,1723891672529,-500.0,0.00023561,2]
[335156053,1723891672573,-785.89,0.00023561,2]
[335156054,1723891672619,-500.0,0.00023561,2]
[335156055,1723891672663,-725.67,0.00023561,2]
[335156056,1723891672712,-868.08,0.00023561,2]
[335156057,1723891672758,-333.28,0.00023561,2]
[335156058,1723891672804,-665.87,0.00023561,2]
[335156059,1723891672851,-500.0,0.00023835,2]
[335156060,1723891672898,-500.0,0.00023835,2]
[335156061,1723891672944,-500.0,0.00023835,2]
[335156062,1723891672991,-500.0,0.00023835,2]
[335156063,1723891673037,-500.0,0.00023835,2]
[335156064,1723891673088,-500.0,0.00023835,2]
[335156065,1723891673143,-500.0,0.00023835,2]
[335156066,1723891673193,-500.0,0.00023835,2]
[335156067,1723891673242,-500.0,0.00023835,2]
[335156068,1723891673293,-500.0,0.00023835,2]
[335156069,1723891673344,-500.0,0.00023835,2]
[335156070,1723891673397,-500.0,0.00023835,2]
[335156071,1723891673453,-500.0,0.00023835,2]
[335156072,1723891673510,-638.63,0.00023835,2]
[335156073,1723891673565,-500.0,0.00023835,2]
[335156074,1723891673613,-500.0,0.00023835,2]
[335156075,1723891673662,-202.61494784,0.00023835,2]
[335156076,1723891673712,-396.54487859,0.00023835,2]
[335156077,1723891673762,-604.86771536,0.00023835,2]
[335156078,1723891673811,-500.0,0.00023835,2]
[335156079,1723891673860,-500.0,0.00023835,2]
[335156080,1723891673911,-359.56580368,0.00023835,2]
[335156081,1723891673957,-500.0,0.00023835,2]
[335156082,1723891674005,-571.46,0.00023835,2]
[335156083,1723891674053,-500.0,0.00023835,2]
[335156084,1723891674103,-4039.78,0.00023835,2]
[335156085,1723891674149,-500.0,0.00023835,2]
[335156086,1723891674200,-500.0,0.00023835,2]
[335156087,1723891674248,-500.0,0.00023835,2]
[335156088,1723891674296,-578.52,0.00023835,2]
[335156089,1723891674342,-669.44,0.00023835,2]
[335156090,1723891674390,-500.0,0.00023835,2]
[335156091,1723891674446,-500.0,0.00023835,2]
[335156092,1723891674501,-500.0,0.00023835,2]
[335156093,1723891674552,-1476.57,0.00023835,2]
[335156094,1723891674604,-583.41,0.00023835,2]
[335156095,1723891674652,-500.0,0.00023835,2]
[335156096,1723891674700,-500.0,0.00023835,2]
[335156097,1723891674748,-500.0,0.00023835,2]
[335156098,1723891674800,-500.0,0.00023835,2]
[335156099,1723891674851,-500.0,0.00023835,2]
[335156100,1723891674899,-500.0,0.00023835,2]
[335156101,1723891674948,-500.0,0.00023835,2]
[335156102,1723891674995,-500.0,0.00023835,2]
[335156103,1723891675040,-500.0,0.00023835,2]
[335156104,1723891675089,-500.0,0.00023835,2]
[335156105,1723891675136,-386.87594627,0.00023835,2]
[335156106,1723891675185,-500.0,0.00023835,2]
[335156107,1723891675230,-707.23,0.00023835,2]
[335156108,1723891675279,-500.0,0.00023835,2]
[335156109,1723891675326,-1366.18,0.00023835,2]
[335156110,1723891675373,-500.0,0.00023835,2]
[335156111,1723891675419,-500.0,0.00023835,2]
[335156112,1723891675477,-740.75,0.00023835,2]
[335156113,1723891675523,-500.0,0.00023835,2]